Cogmind - Beta 9.5 @@@ ROGUE MODE // 2020.04.07 @ 12:21:34 Player: Barleymor Result: Destroyed by Y-45 Defender with Heavy Assault Rifle Performance ------------- Evolutions (1) 500 Regions Visited (2) 400 Robots Destroyed (45) 225 Value Destroyed (1120) 1120 Prototype IDs (5) 100 Alien Tech Used (0) 0 Bonus (73) 73 TOTAL SCORE: 2418 Bonus ------- High Alert Combat Kills 73 Cogmind --------- Core Integrity 0/400 Matter 123/300 Energy 265/265 System Corruption 0% Temperature Cool (185) Movement Walking (120) Location -9/Materials Parts ------- > --- POWER (1) -------- Improved Ion Engine > --- PROPULSION (4) --- Aluminum Leg Aluminum Leg Improved Aluminum Leg > --- UTILITY (2) ------ Medium Storage Unit > --- WEAPON (2) ------- Particle Gun Heavy Assault Rifle > --- INVENTORY (8) ---- Improved Ion Engine Aluminum Leg Aluminum Leg Sensor Array Improved Signal Interpreter Rocket Launcher Rocket Launcher Rocket Launcher Peak State ------------ > --- POWER ------------ Improved Ion Engine > --- PROPULSION ------- Aluminum Leg Aluminum Leg Aluminum Leg Improved Aluminum Leg > --- UTILITY ---------- Medium Storage Unit Light Armor Plating > --- WEAPON ----------- Heavy Assault Rifle Rocket Launcher > --- INVENTORY -------- Improved Ion Engine Aluminum Leg Aluminum Leg Aluminum Leg Particle Gun Spread Laser Rocket Launcher Rocket Launcher [Rating: 14] Favorites ----------- Power Light Ion Engine Engine Light Ion Engine Propulsion Aluminum Leg Leg Aluminum Leg Utility Medium Storage Unit Device Improved Terrain Scanner Storage Medium Storage Unit Protection Light Armor Plating Weapon Improved Light Cannon Energy Gun EM Pulse Gun Energy Cannon Particle Cannon Ballistic Gun Heavy Assault Rifle Ballistic Cannon Improved Light Cannon Launcher Rocket Launcher Build | -11 -10 -9 ------- Run | Scr Mat Mat Slots Evolved 2 | . . 2 Power . | . . . Propulsion 2 | . . 2 Utility . | . . . Weapon . | . . . Parts Attached 43 | 7 10 26 Power 6 | 1 2 3 Engine 6 | 1 2 3 Core . | . . . Reactor . | . . . Propulsion 14 | 2 . 12 Treads . | . . . Leg 14 | 2 . 12 Wheel . | . . . Hover . | . . . Flight . | . . . Utility 7 | 2 3 2 Device 1 | . 1 . Storage 3 | 2 1 . Processor . | . . . Hackware . | . . . Protection 3 | . 1 2 Artifact . | . . . Weapon 16 | 2 5 9 Energy Gun 7 | 2 1 4 Energy Cannon 4 | . 2 2 Ballistic Gun 2 | . . 2 Ballistic Cannon 2 | . 2 . Launcher 1 | . . 1 Special Weapon . | . . . Impact Weapon . | . . . Slashing Weapon . | . . . Piercing Weapon . | . . . Special Melee Weapon . | . . . Unidentified Prototypes 1 | . 1 . Parts Lost 13 | . . 13 Power 1 | . . 1 Propulsion 5 | . . 5 Utility 3 | . . 3 Weapon 4 | . . 4 Highest Loss Streak 10 | . . 10 Average Slot Usage (%) 94 | . 99 91 Engine 11 | . 14 10 Leg 37 | . 28 42 Device 1 | . 3 . Storage 12 | . 16 11 Protection 7 | . 7 7 Energy Gun 1 | . . 1 Energy Cannon 2 | . 4 . Ballistic Gun 4 | . . 7 Ballistic Cannon 12 | . 22 5 Launcher 3 | . . 4 Naked Turns . | . . . Heaviest Build 25 | 15 24 25 Greatest Support 43 | 20 20 43 Greatest Overweight (x) 2 | 2 1 . Average Overweight (x) . | . . . Largest Inventory Capacity 10 | 8 10 8 Average Capacity 7 | 6 8 8 Most Carried 8 | 4 8 8 Average Carried 6 | 1 7 6 Final Capacity 8 | 8 8 8 Final Carried 8 | 2 8 8 Class Distribution -------------------- 56% | Mutant 43% | Scavenger-Mutant Dominant Class ---------------- Mutant | -10/Materials Scavenger-Mutant | -9/Materials Resources | -11 -10 -9 ----------- Run | Scr Mat Mat Matter Collected 1139 | 270 295 574 Remotely . | . . . Salvage Created 1028 | 67 231 730 Parts 66 | 2 18 46 Haulers Intercepted 1 | . . 1 Recyclers Shooed . | . . . Parts Field Recycled . | . . . Retrieved Matter . | . . . Parts Self-Destructed . | . . . Prevented . | . . . Kills | -11 -10 -9 ------- Run | Scr Mat Mat Combat Hostiles Destroyed 35 | . 10 25 Guns 11 | . . 11 Cannons 22 | . 10 12 AOE 2 | . . 2 Classes Destroyed 9 | 1 3 5 Worker 1 | . . 1 Hauler 1 | . . 1 Recycler 2 | 1 1 . Operator 1 | . . 1 Watcher 5 | . 2 3 Swarmer 13 | . 7 6 Grunt 15 | . 3 12 Brawler 1 | . . 1 Sentry 6 | . . 6 Best Kill Streak 8 | 1 6 8 Combat Bots Only 8 | . 4 8 Max Kills in Single Turn 2 | 1 1 2 Gunslinging . | . . . Exploded 1 | . . 1 Melee . | . . . Uniques/NPCs Destroyed . | . . . Combat | -11 -10 -9 -------- Run | Scr Mat Mat Damage Taken 2373 | 16 196 2161 Core 425 | . 17 408 Absorbed by Shields . | . . . Core Remaining (%) 96 | 100 93 . Volleys Fired 128 | 1 26 101 Largest 2 | 2 2 2 Hottest 108 | 90 78 108 Shots Fired 201 | 2 52 147 Gun 59 | 2 . 57 Cannon 129 | . 52 77 Launcher 13 | . . 13 Special . | . . . Kinetic 163 | . 52 111 Thermal 20 | 1 . 19 Explosive 13 | . . 13 Electromagnetic 5 | 1 . 4 Robot Hit Streak 16 | 2 6 16 Robot Miss Streak 4 | . 4 4 Penetration Max . | . . . Secondary Targets . | . . . Shots Hit Robots 123 | 2 26 95 Core Hits 64 | 1 13 50 Critical Hits 1 | . 1 . Critical Kills . | . . . Critical Parts Destroyed 1 | . 1 . Melee Attacks . | . . . Impact . | . . . Slashing . | . . . Piercing . | . . . Sneak Attacks . | . . . Combat Hostiles . | . . . Follow-up Attacks . | . . . Damage Inflicted 2750 | 64 538 2148 Guns 706 | 25 . 681 Cannons 1531 | . 538 993 Explosions 513 | 39 . 474 Melee . | . . . Ramming . | . . . Kinetic 2025 | . 538 1487 Thermal 275 | 51 . 224 Explosive 413 | . . 413 Electromagnetic 37 | 13 . 24 Impact . | . . . Slashing . | . . . Piercing . | . . . Highest Corruption . | . . . Average Corruption . | . . . Corruption Purged . | . . . Overload Shots . | . . . Overflow Damage 31 | . 1 30 Projectiles 27 | . 1 26 Explosions 4 | . . 4 Melee . | . . . Knockbacks 12 | . 6 6 Impact . | . . . Kinetic 11 | . 6 5 Secondary 1 | . . 1 Self-Inflicted Damage 57 | 17 . 40 Shots 2 | 1 . 1 Rammed . | . . . Targets Rammed . | . . . Kicked . | . . . Crushed . | . . . Highest Temperature 520 | 42 189 520 Average Temperature 125 | 25 52 163 Received Heat Transfer 588 | . 18 570 Effects 11 | . . 11 Shutdowns 1 | . . 1 Energy Bleed 1 | . . 1 Interference 3 | . . 3 Short Circuit 1 | . . 1 Damage (minor) 1 | . . 1 Damage (major) 3 | . . 3 Damage (core) 1 | . . 1 Siege Activations . | . . . Robots Corrupted . | . . . Combat Hostiles . | . . . Parts Fried . | . . . Impact Corruptions . | . . . Robots Melted . | . . . Combat Hostiles . | . . . Parts Melted . | . . . Heat Transferred 573 | 87 . 486 Parts Sabotaged . | . . . Parts Stolen . | . . . Parts Stripped . | . . . Power Chain Reactions 2 | 1 . 1 Missiles Intercepted . | . . . Alert | -11 -10 -9 ------- Run | Scr Mat Mat Peak Influence 511 | 5 270 511 Average Influence 228 | 2 71 336 Maximum Alert Level 2 | . 1 2 Low Security (%) 41 | 100 85 12 Level 1 42 | . 14 61 Level 2 15 | . . 26 Level 3 . | . . . Level 4 . | . . . Level 5 . | . . . High Security . | . . . Max Security . | . . . Squads Dispatched 3 | . 1 2 Investigation . | . . . Extermination . | . . . Reinforcement 3 | . 1 2 Assault . | . . . Garrison . | . . . Intercept . | . . . Construction Impeded . | . . . Haulers Reinforced . | . . . Stealth | -11 -10 -9 --------- Run | Scr Mat Mat Distress Signals 5 | . 2 3 Communications Jammed . | . . . Distress Signals . | . . . Times Spotted 56 | . 17 39 Peak Tracking Total 7 | . 4 7 Tactical Retreats 7 | . 1 6 Traps | -11 -10 -9 ------- Run | Scr Mat Mat Traps Triggered . | . . . Indirectly . | . . . Trap Hack Attempts . | . . . Triggered . | . . . Disarmed . | . . . Reprogrammed . | . . . Reused . | . . . Traps Extracted . | . . . Installed . | . . . Triggered . | . . . Machines | -11 -10 -9 ---------- Run | Scr Mat Mat Machines Disabled 5 | . 1 4 Max in Single Turn 1 | . 1 1 Machines Sabotaged . | . . . Garrisons Compromised . | . . . Overloaded Fab Kills . | . . . Fab Network Shutdowns . | . . . Hacking | -11 -10 -9 --------- Run | Scr Mat Mat Machines Accessed 10 | . 3 7 Terminals 8 | . 2 6 Fabricators . | . . . Repair Stations . | . . . Recycling Units 1 | . 1 . Scanalyzers 1 | . . 1 Garrison Access . | . . . Total Hacks 18 | . 5 13 Successful 16 | . 4 12 Failed 2 | . 1 1 Catastrophic . | . . . Database Lockouts . | . . . Manual . | . . . Terminals 9 | . 2 7 Fabricators . | . . . Repair Stations . | . . . Recycling Units 3 | . 3 . Scanalyzers 6 | . . 6 Garrison Access . | . . . Terminal Hacks 7 | . 1 6 Record 3 | . . 3 Prototype ID Bank 2 | . 1 1 Zone Layout 2 | . . 2 Fabricator Hacks . | . . . Repair Station Hacks . | . . . Recycling Unit Hacks 3 | . 3 . Process 1 | . 1 . Report Inventory 1 | . 1 . Retrieve Matter 1 | . 1 . Scanalyzer 6 | . . 6 Insert Component 3 | . . 3 Analyze 3 | . . 3 Garrison Access Hacks . | . . . Unauthorized Hacks . | . . . Terminals . | . . . Fabricators . | . . . Repair Stations . | . . . Recycling Units . | . . . Scanalyzers . | . . . Garrison Access . | . . . Data Cores Recovered 1 | . . 1 Used 1 | . . 1 Hacking Detections 4 | . 1 3 Full Trace Events . | . . . Feedback Events . | . . . Feedback Blocked . | . . . Robot Schematics Acquired . | . . . Robots Built . | . . . Matter . | . . . Time . | . . . Total Robot Build Rating . | . . . Part Schematics Acquired 3 | . . 3 Parts Built . | . . . Matter . | . . . Time . | . . . Total Part Build Rating . | . . . Parts Repaired . | . . . Time . | . . . Parts Recycled . | . . . Recycled Matter 224 | . 224 . Retrieved Matter 224 | . 224 . Retrieved Components . | . . . Parts Scanalyzed 3 | . . 3 Part Schematics Acquired 3 | . . 3 Parts Damaged . | . . . Bothacking | -11 -10 -9 ------------ Run | Scr Mat Mat Used RIF Installer . | . . . Robots Hacked . | . . . Non-combat . | . . . Combat . | . . . Robot Hacks Applied . | . . . Relay Couplers Released . | . . . Robots Rewired . | . . . Allies Hacked . | . . . Hacks Repelled . | . . . Allies | -11 -10 -9 -------- Run | Scr Mat Mat Total Allies . | . . . Largest Group . | . . . Highest-Rated Group . | . . . Highest-Rated Ally . | . . . Total Orders . | . . . Ally Attacks . | . . . Total Damage . | . . . Kills . | . . . Allies Corrupted . | . . . Allies Melted . | . . . Intel | -11 -10 -9 ------- Run | Scr Mat Mat Robot Analysis Total . | . . . Derelict Logs Recovered . | . . . Drone Launches . | . . . Drone Recoveries . | . . . Exploration | -11 -10 -9 ------------- Run | Scr Mat Mat Turns Passed 1593 | 63 569 961 Spaces Moved 765 | 35 305 425 Core 10 | 10 . . Treads . | . . . Legs 755 | 25 305 425 Wheels . | . . . Hover . | . . . Flight . | . . . Fastest Speed 50 | 50 120 120 Average Speed 125 | 112 135 120 Slowest Speed 150 | 150 150 120 Overloaded Moves . | . . . Propulsion Burnouts . | . . . Robots Hopped . | . . . Cave-ins Triggered . | . . . Exploration Rate (%) 30 | 3 52 37 Regions Visited 2 Branch Regions . Pre-discovered Areas . | . . . Known Exits Taken . | . . . Unknown Exits Taken 2 | 1 1 . Scrap Searched . | . . . Spaces Dug . | . . . Terrain Destroyed 126 | 2 8 116 Melee . | . . . Projectile 10 | . 8 2 AOE 116 | 2 . 114 Actions | -11 -10 -9 --------- Run | Scr Mat Mat Total 1202 | 56 413 733 Wait 195 | 5 47 143 Move 763 | 34 304 425 Hop . | . . . Pick Up 47 | 9 15 23 Fast Attach . | . . . Attach 22 | 7 2 13 Detach . | . . . Swap 21 | . 8 13 Drop 26 | . 11 15 Fire 128 | 1 26 101 Melee . | . . . Ram . | . . . Kick . | . . . Crush . | . . . Escape Stasis . | . . . Rewire . | . . . Trap . | . . . Miscellaneous . | . . . Route ------- -11/Scrapyard -10/Materials (discovered 2 exits: *Mat / [*Min]) -9/Materials History --------- Turn | Location | Event 19 | -11/Scrapyard | Discovered new exit (range 15) 64 | -11/Scrapyard | Entered Materials 305 | -10/Materials | Build established: Mutant 365 | -10/Materials | Discovered new exit (range 8) 487 | -10/Materials | Discovered new exit (range 15) 633 | -10/Materials | Entered another Materials area 633 | -9/Materials | Evolved 2 slots: Propulsion x2 925 | -9/Materials | Destroyed 8 combat bots 947 | -9/Materials | Core integrity fell below 50% 987 | -9/Materials | Lost 10 parts (1p4n1u4w) 1113 | -9/Materials | Core integrity fell below 20% 1288 | -9/Materials | Build established: Scavenger-Mutant 1594 | -9/Materials | Destroyed by Y-45 Defender with Heavy Assault Rifle Last Messages --------------- 01552_ U-05 Engineer builds a Wall. 01553_ The unstable cave ceiling collapses. 01553_ U-05 Engineer lays Concrete. 01555_ The unstable cave ceiling collapses. 01555_ K-01 Serf collects debris. 01555_ U-05 Engineer builds a Wall. 01555_ U-05 Engineer lays Concrete. 01557_ U-05 Engineer builds a Wall. 01558_ U-05 Engineer lays Concrete. 01558_ Y-45 Defender destroyed. 01558_ K-01 Serf collects debris. 01559_ U-05 Engineer lays Concrete. 01560_ The unstable cave ceiling collapses. 01560_ U-05 Engineer lays Concrete. 01560_ U-05 Engineer builds a Wall. 01561_ K-01 Serf destroyed. 01567_ Lgt. Armor Plating destroyed. 01580_ Destroyed Beam Rifle. 01585_ Aluminum Leg destroyed. 01589_ Destroyed Lgt. Armor Plating. Map ----- +----------------------------------------------------+ | ????????????????????# * # #??#########+## | | ????????????????????# # ##### | | ????????????????????# # + ! | | ????????????????????# # ##### ! | | ????????????????????# # #???# ####### | | ????????????# ###?#+#+####+####### #???# ##+# | | ????????????# # #???# | | ????????????? #???# | | ?????????????? # #???# | | ?????????????????##?###+## ######+### ##??? # | | ?????????????????????# #=# ! #?# #????## | | ?????????????????????# #[# ### ###??# | | ?????????????????????# =#=# """ # #??### ## | | ?????????????????????# = #[# """ # #?????### | | ?????????????????????# =+ # """ # T #???????# | | ?????????????????????# *[#*# # #???????# | | ?????????????????????#= =# ######## #???????# | | ?????????????????????##### #??????## ##???????# | | ??????????????????######## #???????# #????????# | | ??????????????????#!!]]==# #???????+ #????????# | | ??????????????????#!!]]==#=#???????# #????????## | | ??????????????????# #%#???????# #?????????? | | ????????????????### #*#???????# #?????????? | | ????????????????+ a#???????# #?????????? | | ????????????????#### #???????# #?????????? | | ???????????????????# @ #???????# ??????????? | | ???????????????????# Y ##Y#???????# ??????????? | | ??????????????????# # ??????# ??????????? | | ??????????????????# # ?????? ??????????? | | ????????????????? ??????????????????? | | ??????????????? # # ""????????????????? | | ?????????????? ???????????????? | | ?????????????# [ """#??????????????? | | ?????????????## % """#??????????????? | | ??????????????# ""????????????????? | | ??????????????# ????????????????? | | ???????????????? ###+##????????????????? | | ????????????????????? #???????????????????????? | | ?????????????????????????????????????????????????? | | ?????????????????????????????????????????????????? | | ?????????????????????????????????????????????????? | | ?????????????????????????????????????????????????? | | ?????????????????????????????????????????????????? | | ?????????????????????????????????????????????????? | | ?????????????????????????????????????????????????? | | ?????????????????????????????????????????????????? | | ?????????????????????????????????????????????????? | | ?????????????????????????????????????????????????? | | ?????????????????????????????????????????????????? | | ?????????????????????????????????????????????????? | +----------------------------------------------------+ Best States ------------- Heat Dissipation 28 Energy Generation 12 Energy Capacity 265 Matter Stores 300 Matter Capacity 300 Sight Range 16 Terrain Scan Range 16 Terrain Scan Density 10 Armor Coverage 150 Evasion (%) 40 Item Schematics ----------------- Rocket Launcher | -9/Materials | Scanalyzed Aluminum Leg | -9/Materials | Scanalyzed Lgt. Armor Plating | -9/Materials | Scanalyzed Robot Schematics ------------------ None Fabricated ------------ Nothing Alien Tech Used ----------------- None Achievements -------------- None Challenges ------------ None Game ------ Seed AnalysisLauncherAccelerator Manual? 0 Play Time 00:31:34 Cumulative 15.6 hours Start 2020.04.07 @ 11:30:17 End 2020.04.07 @ 12:21:34 Sessions 1 Manual Loads 0 Difficulty Rogue Special Mode None Game No. 12 Rogue 12 Adventurer 0 Explorer 0 Win Type - Total 0 Types 0/0/0/0/0/0/0 Lore% 5 Gallery% 20 Achievement% 16 Wizard Run 0 Options --------- ASCII 0 Keyboard 0 Movement Numpad Keybinds 0 Fullscreen 1 Font 20/SmallcapsGlow Map View 66x50 Tactical HUD 1 Map Filters NONE Filters NONE Steam 1 RUN: 986c01a6-bc8d-42f7-abec-09fb53996577